fUST/lending_fUST_20250223
["ID","MTS","AMOUNT","RATE_DAILY","PERIOD"]
[354167334,1740318640518,-151.0,0.00014109,2]
[354167336,1740318640528,-182.652981,0.00014109,2]
[354167338,1740318640538,-182.652981,0.00014109,2]
[354167340,1740318640547,-500.0,0.00014109,2]
[354167342,1740318640558,-614.16,0.00014109,2]
[354167344,1740318640568,-664.752511,0.00014109,2]
[354167346,1740318640577,-664.752511,0.00014109,2]
[354167348,1740318640586,-500.0,0.00014109,2]
[354167350,1740318640596,-185.666657,0.00014109,2]
[354167352,1740318640605,-185.666657,0.00014109,2]
[354167354,1740318640614,-151.0,0.00014109,2]
[354167356,1740318640624,-500.0,0.00014109,2]
[354167358,1740318640633,-500.0,0.00014109,2]
[354167360,1740318640642,-3132.76,0.00014109,2]
[354167362,1740318640651,-2016.89,0.00014109,2]
[354167363,1740318640661,-686.76,0.00014109,2]
[354167364,1740318640670,-835.87,0.00014109,2]
[354167365,1740318640680,-723.15,0.00014109,2]
[354167366,1740318640690,-583.18,0.00014109,2]
[354167367,1740318640699,-500.0,0.00014109,2]
[354167368,1740318640708,-12924.89674434,0.00014116,2]
[354167369,1740318640717,-151.0,0.00014117,2]
[354167370,1740318640727,-151.0,0.00014117,2]
[354167371,1740318640736,-151.0,0.00014117,2]
[354167372,1740318640745,-500.0,0.00014164,2]
[354167373,1740318640754,-327.32894463,0.00014191,2]
[354167374,1740318640763,-614.16,0.00014191,2]
[354167375,1740318640772,-500.0,0.00014191,2]
[354167376,1740318640782,-500.0,0.00014191,2]
[354167378,1740318640791,-500.0,0.00014191,2]
[354167380,1740318640801,-3132.76,0.00014191,2]
[354167382,1740318640810,-2016.89,0.00014191,2]
[354167384,1740318640819,-686.76,0.00014191,2]
[354167386,1740318640828,-835.87,0.00014191,2]
[354167388,1740318640838,-723.15,0.00014191,2]
[354167390,1740318640846,-583.18,0.00014191,2]
[354167392,1740318640855,-500.0,0.00014191,2]
[354167394,1740318640865,-202.0,0.000142,12]
[354167396,1740318640874,-200.0,0.000142,12]
[354167398,1740318640883,-200.0,0.000142,10]
[354167400,1740318640893,-163.4030903,0.00014209,2]
[354167402,1740318640902,-1000.0,0.00014221,2]
[354167404,1740318640911,-1000.0,0.00014221,2]
[354167406,1740318640920,-1059.59699917,0.00014248,2]
[354167408,1740318640930,-3922.537681,0.0001427,5]
[354167455,1740318642947,-4756.0876829,0.0001427,5]
[354167468,1740318645952,-496.655,0.0001427,5]
[354167470,1740318756931,1302.68,8.001e-05,2]
[354167476,1740318858292,257.474708,9.041e-05,2]
[354167478,1740319597258,3123.13539889,9.913e-05,2]
[354167533,1740319832305,-3822.74399356,9.716e-05,2]
[354167535,1740319832315,-5000.0,9.814e-05,2]
[354167537,1740319832325,-207.19,0.00010959,2]
[354167539,1740319832334,-172.66,0.00010959,2]
[354167541,1740319832343,-863.33,0.00010959,2]
[354167543,1740319832353,-300.0,0.00011904,2]
[354167545,1740319832362,-202.8801366,0.00011905,2]
[354167547,1740319832372,-9895.9825101,0.00012632,2]
[354167549,1740319832384,-2660.1,0.00012632,2]
[354167560,1740319832478,-543.15596667,0.00012632,2]
[354167562,1740319832491,-11800.76152323,0.00012632,2]
[354167564,1740319832500,-420.0,0.00013069,2]
[354167566,1740319832510,-209.96118843,0.00013133,2]
[354167568,1740319832519,-150.0,0.00013498,2]
[354167571,1740319832529,-355.3336689,0.00013534,2]
[354167574,1740319832541,-355.3336689,0.00013534,2]
[354167576,1740319832550,-355.0930383,0.00013534,2]
[354167577,1740319832559,-347.8062777,0.00013671,2]
[354167579,1740319832569,-356.4276366,0.00013671,2]
[354167581,1740319832578,-500.0,0.00013698,2]
[354167583,1740319832588,-500.0,0.00013698,2]
[354167585,1740319832597,-395.66764978,0.00013698,2]
[354167700,1740319838158,-104.33235022,0.00013698,2]
[354167701,1740319838168,-1333.91034748,0.00013698,2]
[354167719,1740319843240,-1251.55866989,0.00013698,2]
[354167731,1740320265244,254.768623,9.041e-05,2]
[354167736,1740320761786,1000.0,0.00019,120]
[354167738,1740320913112,1119.16123286,0.00018173,90]
[354167769,1740321038312,-5000.0,9.814e-05,2]
[354167770,1740321038322,-5000.0,9.913e-05,2]
[354167771,1740321038331,-300.0,0.00010958,2]
[354167772,1740321038340,-249.51,0.00010959,2]
[354167773,1740321038350,-207.93,0.00010959,2]
[354167774,1740321038359,-173.27,0.00010959,2]
[354167775,1740321038370,-866.39,0.00010959,2]
[354167776,1740321038381,-250.0,0.00011202,2]
[354167777,1740321038390,-24900.0,0.00011738,2]
[354167778,1740321038399,-157.409695,0.00011975,2]
[354167779,1740321038408,-420.0,0.00012042,2]
[354167780,1740321038418,-3353.32321632,0.00012999,5]
[354167781,1740321038427,-11475.22700947,0.00013,5]
[354167783,1740321038436,-51630.74197842,0.00013,2]
[354167785,1740321038445,-587.0,0.00013233,2]
[354167787,1740321038454,-150.0,0.00013498,2]
[354167789,1740321038462,-150.0,0.00013498,2]
[354167791,1740321038471,-10763.21405838,0.000135,2]
[354167793,1740321038480,-355.3336689,0.00013534,2]
[354167795,1740321038490,-355.3336689,0.00013534,2]
[354167797,1740321038499,-355.3336689,0.00013534,2]
[354167798,1740321038508,-355.3336689,0.00013534,2]
[354167799,1740321038517,-355.3336689,0.00013534,2]
[354167800,1740321038526,-355.3336689,0.00013534,2]
[354167801,1740321038535,-355.3336689,0.00013534,2]
[354167802,1740321038543,-355.3336689,0.00013534,2]
[354167803,1740321038553,-355.3336689,0.00013534,2]
[354167804,1740321038563,-169.44250669,0.000136,10]
[354167805,1740321038572,-200.0,0.000136,11]
[354167806,1740321038581,-200.0,0.000136,10]
[354167807,1740321038590,-152.0,0.00013628,2]
[354167808,1740321038599,-12473.90766894,0.00013671,2]
[354167809,1740321038609,-154.8147227,0.00013671,2]
[354167810,1740321038619,-154.8147227,0.00013671,2]
[354167811,1740321038628,-308.5185246,0.00013671,2]
[354167812,1740321038637,-154.8147227,0.00013671,2]
[354167813,1740321038647,-265.6037262,0.00013671,2]
[354167814,1740321038657,-153.0,0.00013671,2]
[354167815,1740321038667,-154.8147227,0.00013671,2]
[354167816,1740321038678,-154.8147227,0.00013671,2]
[354167817,1740321038687,-153.0,0.00013671,2]
[354167818,1740321038696,-154.5965351,0.00013671,2]
[354167819,1740321038705,-277.76646851,0.0001369,2]
[354167820,1740321038715,-500.0,0.00013698,2]
[354167821,1740321038725,-500.0,0.00013698,2]
[354167822,1740321038734,-621.78067899,0.00013698,2]
[354167823,1740321038743,-500.0,0.00013698,2]
[354167824,1740321038753,-502.97780848,0.00013698,2]
[354167825,1740321038762,-500.0,0.00013698,2]
[354167826,1740321038772,-500.0,0.00013698,2]
[354167827,1740321038781,-500.0,0.00013698,2]
[354167828,1740321038790,-500.0,0.00013698,2]
[354167829,1740321038799,-500.0,0.00013698,2]
[354167830,1740321038808,-337.8226994,0.00013698,2]
[354167831,1740321038817,-500.0,0.00013698,2]
[354167832,1740321038826,-500.0,0.00013698,2]
[354167833,1740321038836,-500.0,0.00013698,2]
[354167834,1740321038845,-500.0,0.00013698,2]
[354167835,1740321038854,-500.0,0.00013698,2]
[354167836,1740321038863,-500.0,0.00013698,2]
[354167837,1740321038874,-500.0,0.00013698,2]
[354167838,1740321038884,-223.89,0.00013698,2]
[354167839,1740321038893,-501.81927263,0.00013698,2]
[354167840,1740321038901,-500.0,0.00013698,2]
[354167841,1740321038910,-500.0,0.00013698,2]
[354167842,1740321038919,-500.0,0.00013698,2]
[354167843,1740321038928,-500.0,0.00013698,2]
[354167844,1740321038937,-479.81939398,0.00013698,2]
[354167845,1740321038946,-500.0,0.00013698,2]
[354167846,1740321038955,-522.67,0.00013698,2]
[354167847,1740321038964,-500.0,0.00013698,2]
[354167848,1740321038974,-500.0,0.00013698,2]
[354167849,1740321038983,-451.49,0.00013698,2]
[354167850,1740321038991,-500.0,0.00013698,2]
[354167851,1740321039001,-500.0,0.00013698,2]
[354167852,1740321039010,-500.0,0.00013698,2]
[354167853,1740321039019,-648.89,0.00013698,2]
[354167854,1740321039028,-500.0,0.00013698,2]
[354167855,1740321039037,-400.15830574,0.00013698,2]
[354167856,1740321039047,-499.0,0.00013698,2]
[354167857,1740321039056,-500.0,0.00013698,2]
[354167858,1740321039065,-506.03716511,0.00013698,2]
[354167859,1740321039074,-500.0,0.00013698,2]
[354167860,1740321039083,-500.0,0.00013698,2]
[354167861,1740321039092,-278.37082709,0.00013698,2]
[354167862,1740321039101,-500.0,0.00013698,2]
[354167863,1740321039110,-500.0,0.00013698,2]
[354167864,1740321039120,-500.0,0.00013698,2]
[354167865,1740321039129,-500.0,0.00013698,2]
[354167866,1740321039138,-500.0,0.00013698,2]
[354167867,1740321039147,-500.0,0.00013698,2]
[354167868,1740321039156,-500.0,0.00013698,2]
[354167869,1740321039166,-500.0,0.00013698,2]
[354167870,1740321039175,-696.93,0.00013698,2]
[354167871,1740321039184,-500.0,0.00013698,2]
[354167872,1740321039193,-500.0,0.00013698,2]
[354167873,1740321039202,-500.0,0.00013698,2]
[354167874,1740321039211,-500.0,0.00013698,2]
[354167875,1740321039221,-500.0,0.00013698,2]
[354167876,1740321039230,-500.0,0.00013698,2]
[354167877,1740321039239,-500.0,0.00013698,2]
[354167878,1740321039249,-500.0,0.00013698,2]
[354167879,1740321039258,-500.0,0.00013698,2]
[354167880,1740321039267,-500.0,0.00013698,2]
[354167881,1740321039276,-500.0,0.00013698,2]
[354167882,1740321039285,-178.44063484,0.00013698,2]
[354167883,1740321039294,-500.0,0.00013698,2]
[354167884,1740321039307,-251.12904883,0.00013698,2]
[354167885,1740321039316,-500.0,0.00013698,2]
[354167886,1740321039326,-500.0,0.00013698,2]
[354167887,1740321039335,-500.0,0.00013698,2]
[354167888,1740321039344,-500.0,0.00013698,2]
[354167889,1740321039452,-500.0,0.00013698,2]
[354167890,1740321039466,-500.0,0.00013698,2]
[354167891,1740321039475,-500.0,0.00013698,2]
[354167892,1740321039485,-500.0,0.00013698,2]
[354167893,1740321039495,-500.0,0.00013698,2]
[354167894,1740321039504,-3954.08,0.00013698,2]
[354167895,1740321039515,-714.24,0.00013698,2]
[354167896,1740321039524,-500.0,0.00013698,2]
[354167897,1740321039533,-502.80699252,0.00013698,2]
[354167898,1740321039543,-2387.06,0.00013698,2]
[354167899,1740321039552,-274.4851876,0.00013698,2]
[354167900,1740321039562,-500.0,0.00013698,2]
[354167901,1740321039572,-500.0,0.00013698,2]
[354167902,1740321039582,-500.0,0.00013698,2]
[354167903,1740321039591,-500.0,0.00013698,2]
[354167904,1740321039601,-500.0,0.00013698,2]
[354167905,1740321039611,-500.0,0.00013698,2]
[354167906,1740321039620,-1048.17,0.00013698,2]
[354167907,1740321039630,-193.874044,0.00013698,2]
[354167908,1740321039639,-500.0,0.00013698,2]
[354167909,1740321039649,-500.0,0.00013698,2]
[354167910,1740321039659,-500.0,0.00013698,2]
[354167911,1740321039668,-949.6,0.00013698,2]
[354167912,1740321039677,-500.0,0.00013698,2]
[354167913,1740321039686,-590.64,0.00013698,2]
[354167914,1740321039696,-179.73040439,0.00013699,2]
[354167915,1740321039705,-311.727569,0.00013699,2]
[354167916,1740321039715,-182.557878,0.00013699,2]
[354167917,1740321039725,-503.69153122,0.00013778,2]
[354167918,1740321039735,-501.98469483,0.00013778,2]
[354167919,1740321039744,-500.0,0.0001378,2]
[354167920,1740321039753,-500.0,0.0001378,2]
[354167921,1740321039763,-500.0,0.0001378,2]
[354167922,1740321039773,-500.0,0.0001378,2]
[354167923,1740321039782,-507.1831814,0.0001378,2]
[354167924,1740321039791,-500.0,0.0001378,2]
[354167925,1740321039800,-500.0,0.0001378,2]
[354167926,1740321039809,-500.0,0.0001378,2]
[354167927,1740321039818,-500.0,0.0001378,2]
[354167928,1740321039828,-234.24857932,0.0001378,2]
[354167929,1740321039837,-648.89,0.0001378,2]
[354167930,1740321039847,-500.0,0.0001378,2]
[354167931,1740321039856,-500.0,0.0001378,2]
[354167932,1740321039866,-500.0,0.0001378,2]
[354167933,1740321039875,-500.0,0.0001378,2]
[354167934,1740321039885,-2320.115459,0.0001378,2]
[354167935,1740321039894,-2320.115459,0.0001378,2]
[354167936,1740321039904,-500.0,0.0001378,2]
[354167937,1740321039913,-500.0,0.0001378,2]
[354167938,1740321039923,-500.0,0.0001378,2]
[354167939,1740321039932,-500.0,0.0001378,2]
[354167940,1740321039942,-500.0,0.0001378,2]
[354167941,1740321039952,-696.93,0.0001378,2]
[354167942,1740321039961,-500.0,0.0001378,2]
[354167943,1740321039971,-545.459704,0.0001378,2]
[354167944,1740321039980,-545.459704,0.0001378,2]
[354167945,1740321039989,-500.0,0.0001378,2]
[354167946,1740321039999,-485.77362,0.0001378,2]
[354167947,1740321040008,-500.0,0.0001378,2]
[354167948,1740321040018,-485.77362,0.0001378,2]
[354167950,1740321040027,-500.0,0.0001378,2]
[354167951,1740321040037,-500.0,0.0001378,2]
[354167952,1740321040046,-500.0,0.0001378,2]
[354167953,1740321040054,-500.0,0.0001378,2]
[354167954,1740321040063,-500.0,0.0001378,2]
[354167955,1740321040072,-182.687171,0.0001378,2]
[354167956,1740321040082,-500.0,0.0001378,2]
[354167957,1740321040092,-500.0,0.0001378,2]
[354167958,1740321040101,-500.0,0.0001378,2]
[354167959,1740321040111,-500.0,0.0001378,2]
[354167960,1740321040120,-500.0,0.0001378,2]
[354167961,1740321040130,-500.0,0.0001378,2]
[354167962,1740321040139,-500.0,0.0001378,2]
[354167963,1740321040148,-500.0,0.0001378,2]
[354167964,1740321040158,-500.0,0.0001378,2]
[354167966,1740321040167,-500.0,0.0001378,2]
[354167968,1740321040177,-3954.08,0.0001378,2]
[354167970,1740321040187,-714.24,0.0001378,2]
[354167972,1740321040196,-239.05613,0.0001378,2]
[354167973,1740321040205,-500.0,0.0001378,2]
[354167975,1740321040214,-239.05613,0.0001378,2]
[354167976,1740321040224,-2387.06,0.0001378,2]
[354167977,1740321040234,-500.0,0.0001378,2]
[354167978,1740321040244,-500.0,0.0001378,2]
[354167979,1740321040253,-500.0,0.0001378,2]
[354167980,1740321040263,-500.0,0.0001378,2]
[354167981,1740321040272,-500.0,0.0001378,2]
[354167982,1740321040281,-500.0,0.0001378,2]
[354167983,1740321040290,-554.70841,0.0001378,2]
[354167984,1740321040303,-1048.17,0.0001378,2]
[354167985,1740321040313,-554.70841,0.0001378,2]
[354167986,1740321040323,-500.0,0.0001378,2]
[354167987,1740321040332,-500.0,0.0001378,2]
[354167988,1740321040343,-500.0,0.0001378,2]
[354167989,1740321040353,-949.6,0.0001378,2]
[354167990,1740321040362,-500.0,0.0001378,2]
[354167991,1740321040371,-590.64,0.0001378,2]
[354167992,1740321040381,-500.0,0.00013862,2]
[354167993,1740321040391,-438.4953,0.00013862,2]
[354167994,1740321040399,-500.0,0.00013862,2]
[354167996,1740321040409,-500.0,0.00013862,2]
[354167997,1740321040419,-500.0,0.00013862,2]
[354167999,1740321040428,-500.0,0.00013862,2]
[354168000,1740321040437,-170.57688775,0.00013862,2]
[354168001,1740321040447,-500.0,0.00013862,2]
[354168002,1740321040456,-500.0,0.00013862,2]
[354168003,1740321040466,-500.0,0.00013862,2]
[354168004,1740321040475,-500.0,0.00013862,2]
[354168005,1740321040485,-500.0,0.00013862,2]
[354168007,1740321040495,-500.0,0.00013862,2]
[354168008,1740321040504,-500.0,0.00013862,2]
[354168010,1740321040514,-500.0,0.00013862,2]
[354168012,1740321040523,-500.0,0.00013862,2]
[354168014,1740321040532,-419.93,0.00013862,2]
[354168016,1740321040542,-500.0,0.00013862,2]
[354168018,1740321040551,-500.0,0.00013862,2]
[354168019,1740321040560,-500.0,0.00013862,2]
[354168021,1740321040569,-500.0,0.00013862,2]
[354168023,1740321040579,-500.0,0.00013862,2]
[354168024,1740321040588,-500.0,0.00013862,2]
[354168025,1740321040598,-500.0,0.00013862,2]
[354168027,1740321040607,-500.0,0.00013862,2]
[354168029,1740321040616,-500.0,0.00013862,2]
[354168031,1740321040626,-247.22285459,0.00013862,2]
[354168032,1740321040635,-500.0,0.00013862,2]
[354168034,1740321040645,-500.0,0.00013862,2]
[354168035,1740321040654,-500.0,0.00013862,2]
[354168036,1740321040665,-500.0,0.00013862,2]
[354168037,1740321040675,-500.0,0.00013862,2]
[354168038,1740321040685,-500.0,0.00013862,2]
[354168039,1740321040695,-500.0,0.00013862,2]
[354168040,1740321040704,-500.0,0.00013862,2]
[354168041,1740321040713,-500.0,0.00013862,2]
[354168042,1740321040723,-269.4988216,0.00013862,2]
[354168043,1740321040732,-350.0,0.00013862,2]
[354168044,1740321040741,-500.0,0.00013862,2]
[354168045,1740321040751,-500.0,0.00013862,2]
[354168046,1740321040760,-500.0,0.00013862,2]
[354168047,1740321040769,-500.0,0.00013862,2]
[354168048,1740321040779,-500.0,0.00013862,2]
[354168049,1740321040789,-500.0,0.00013862,2]
[354168050,1740321040798,-500.0,0.00013862,2]
[354168051,1740321040808,-500.0,0.00013862,2]
[354168052,1740321040817,-500.0,0.00013862,2]
[354168053,1740321040827,-500.0,0.00013862,2]
[354168054,1740321040836,-500.0,0.00013862,2]
[354168055,1740321040846,-500.0,0.00013862,2]
[354168056,1740321040855,-371.24645798,0.00013862,2]
[354168057,1740321040870,-128.75354202,0.00013862,2]
[354168058,1740321040879,-500.0,0.00013862,2]
[354168059,1740321040888,-500.0,0.00013862,2]
[354168060,1740321040898,-500.0,0.00013862,2]
[354168061,1740321040907,-500.0,0.00013862,2]
[354168062,1740321040917,-500.0,0.00013862,2]
[354168063,1740321040926,-500.0,0.00013862,2]
[354168064,1740321040935,-500.0,0.00013862,2]
[354168065,1740321040945,-500.0,0.00013862,2]
[354168066,1740321040955,-500.0,0.00013862,2]
[354168067,1740321040964,-500.0,0.00013862,2]
[354168068,1740321040973,-500.0,0.00013862,2]
[354168069,1740321040983,-500.0,0.00013862,2]
[354168070,1740321040992,-500.0,0.00013862,2]
[354168071,1740321041001,-500.0,0.00013862,2]
[354168072,1740321041011,-500.0,0.00013862,2]
[354168073,1740321041020,-500.0,0.00013862,2]
[354168074,1740321041029,-500.0,0.00013862,2]
[354168075,1740321041039,-500.0,0.00013862,2]
[354168076,1740321041048,-500.0,0.00013862,2]
[354168077,1740321041057,-500.0,0.00013862,2]
[354168078,1740321041066,-500.0,0.00013862,2]
[354168079,1740321041076,-500.0,0.00013863,2]
[354168080,1740321041086,-500.0,0.00013863,2]
[354168081,1740321041095,-300.783242,0.00013863,2]
[354168082,1740321041105,-500.0,0.00013863,2]
[354168083,1740321041114,-500.0,0.00013863,2]
[354168084,1740321041124,-505.71849357,0.00013863,2]
[354168085,1740321041133,-642.78640849,0.00013863,2]
[354168086,1740321041142,-626.09953576,0.00013863,2]
[354168087,1740321041152,-648.89,0.00013863,2]
[354168088,1740321041162,-151.0,0.00013863,2]
[354168089,1740321041171,-317.382402,0.00013863,2]
[354168090,1740321041180,-500.0,0.00013863,2]
[354168091,1740321041189,-500.0,0.00013863,2]
[354168092,1740321041199,-151.0,0.00013863,2]
[354168093,1740321041209,-500.0,0.00013863,2]
[354168094,1740321041217,-500.0,0.00013863,2]
[354168095,1740321041227,-598.277259,0.00013863,2]
[354168096,1740321041237,-2320.115459,0.00013863,2]
[354168097,1740321041246,-2320.115459,0.00013863,2]
[354168098,1740321041255,-500.0,0.00013863,2]
[354168099,1740321041264,-500.0,0.00013863,2]
[354168100,1740321041274,-500.0,0.00013863,2]
[354168101,1740321041283,-500.0,0.00013863,2]
[354168102,1740321041292,-696.93,0.00013863,2]
[354168103,1740321041302,-500.0,0.00013863,2]
[354168104,1740321041315,-545.459704,0.00013863,2]
[354168105,1740321041324,-545.459704,0.00013863,2]
[354168106,1740321041333,-500.0,0.00013863,2]
[354168107,1740321041342,-485.77362,0.00013863,2]
[354168108,1740321041353,-500.0,0.00013863,2]
[354168109,1740321041363,-485.77362,0.00013863,2]
[354168110,1740321041373,-500.0,0.00013863,2]
[354168111,1740321041383,-500.0,0.00013863,2]
[354168112,1740321041393,-500.0,0.00013863,2]
[354168113,1740321041401,-500.0,0.00013863,2]
[354168114,1740321041410,-500.0,0.00013863,2]
[354168115,1740321041420,-182.687171,0.00013863,2]
[354168116,1740321041429,-500.0,0.00013863,2]
[354168117,1740321041439,-500.0,0.00013863,2]
[354168118,1740321041448,-500.0,0.00013863,2]
[354168119,1740321041457,-500.0,0.00013863,2]
[354168120,1740321041467,-500.0,0.00013863,2]
[354168121,1740321041476,-500.0,0.00013863,2]
[354168122,1740321041485,-500.0,0.00013863,2]
[354168123,1740321041495,-500.0,0.00013863,2]
[354168124,1740321041504,-500.0,0.00013863,2]
[354168125,1740321041513,-500.0,0.00013863,2]
[354168126,1740321041523,-3954.08,0.00013863,2]
[354168127,1740321041532,-714.24,0.00013863,2]
[354168128,1740321041541,-239.05613,0.00013863,2]
[354168129,1740321041551,-239.05613,0.00013863,2]
[354168130,1740321041560,-500.0,0.00013863,2]
[354168131,1740321041570,-239.05613,0.00013863,2]
[354168132,1740321041579,-239.05613,0.00013863,2]
[354168133,1740321041589,-2387.06,0.00013863,2]
[354168134,1740321041598,-500.0,0.00013863,2]
[354168135,1740321041607,-500.0,0.00013863,2]
[354168136,1740321041618,-500.0,0.00013863,2]
[354168137,1740321041627,-500.0,0.00013863,2]
[354168138,1740321041636,-500.0,0.00013863,2]
[354168139,1740321041646,-345.66,0.00013863,2]
[354168140,1740321041656,-554.70841,0.00013863,2]
[354168141,1740321041666,-1048.17,0.00013863,2]
[354168142,1740321041675,-554.70841,0.00013863,2]
[354168143,1740321041685,-500.0,0.00013863,2]
[354168144,1740321041694,-500.0,0.00013863,2]
[354168145,1740321041703,-500.0,0.00013863,2]
[354168146,1740321041712,-949.6,0.00013863,2]
[354168147,1740321041722,-500.0,0.00013863,2]
[354168148,1740321041731,-590.64,0.00013863,2]
[354168149,1740321041740,-151.0,0.00013945,2]
[354168150,1740321041749,-151.0,0.00013945,2]
[354168151,1740321041759,-243.724055,0.00013945,2]
[354168152,1740321041768,-243.724055,0.00013945,2]
[354168153,1740321041778,-500.0,0.00013945,2]
[354168154,1740321041871,-151.0,0.00013945,2]
[354168155,1740321041881,-151.0,0.00013945,2]
[354168156,1740321041891,-500.0,0.00013945,2]
[354168157,1740321041900,-500.0,0.00013945,2]
[354168158,1740321041909,-500.0,0.00013945,2]
[354168159,1740321041919,-648.89,0.00013945,2]
[354168160,1740321041928,-151.0,0.00013945,2]
[354168161,1740321041938,-317.382402,0.00013945,2]
[354168162,1740321041947,-222.751193,0.00013945,2]
[354168163,1740321041957,-317.382402,0.00013945,2]
[354168164,1740321041966,-222.751193,0.00013945,2]
[354168165,1740321041975,-500.0,0.00013945,2]
[354168166,1740321041985,-500.0,0.00013945,2]
[354168167,1740321041995,-151.0,0.00013945,2]
[354168168,1740321042005,-500.0,0.00013945,2]
[354168169,1740321042015,-214.15381799,0.00013945,2]
[354168170,1740321042025,-598.277259,0.00013945,2]
[354168171,1740321042034,-2320.115459,0.00013945,2]
[354168172,1740321042043,-2320.115459,0.00013945,2]
[354168173,1740321042052,-500.0,0.00013945,2]
[354168174,1740321042062,-565.72,0.00013945,2]
[354168175,1740321042071,-500.0,0.00013945,2]
[354168176,1740321042081,-500.0,0.00013945,2]
[354168177,1740321042090,-696.93,0.00013945,2]
[354168178,1740321042099,-500.0,0.00013945,2]
[354168179,1740321042108,-545.459704,0.00013945,2]
[354168180,1740321042117,-545.459704,0.00013945,2]
[354168181,1740321042126,-500.0,0.00013945,2]
[354168182,1740321042136,-485.77362,0.00013945,2]
[354168183,1740321042147,-500.0,0.00013945,2]
[354168184,1740321042158,-485.77362,0.00013945,2]
[354168185,1740321042167,-507.24,0.00013945,2]
[354168186,1740321042176,-500.0,0.00013945,2]
[354168187,1740321042186,-500.0,0.00013945,2]
[354168188,1740321042195,-500.0,0.00013945,2]
[354168189,1740321042204,-500.0,0.00013945,2]
[354168190,1740321042213,-182.687171,0.00013945,2]
[354168191,1740321042222,-500.0,0.00013945,2]
[354168192,1740321042231,-500.0,0.00013945,2]
[354168193,1740321042240,-500.0,0.00013945,2]
[354168194,1740321042249,-500.0,0.00013945,2]
[354168195,1740321042258,-500.0,0.00013945,2]
[354168196,1740321042267,-500.0,0.00013945,2]
[354168197,1740321042277,-500.0,0.00013945,2]
[354168198,1740321042286,-500.0,0.00013945,2]
[354168199,1740321042295,-500.0,0.00013945,2]
[354168200,1740321042308,-500.0,0.00013945,2]
[354168201,1740321042317,-3954.08,0.00013945,2]
[354168202,1740321042326,-714.24,0.00013945,2]
[354168203,1740321042335,-500.0,0.00013945,2]
[354168204,1740321042344,-239.05613,0.00013945,2]
[354168205,1740321042354,-239.05613,0.00013945,2]
[354168206,1740321042363,-2387.06,0.00013945,2]
[354168207,1740321042372,-500.0,0.00013945,2]
[354168208,1740321042381,-500.0,0.00013945,2]
[354168209,1740321042390,-500.0,0.00013945,2]
[354168210,1740321042400,-500.0,0.00013945,2]
[354168211,1740321042409,-500.0,0.00013945,2]
[354168212,1740321042418,-554.70841,0.00013945,2]
[354168213,1740321042427,-1048.17,0.00013945,2]
[354168214,1740321042436,-554.70841,0.00013945,2]
[354168215,1740321042446,-500.0,0.00013945,2]
[354168216,1740321042455,-500.0,0.00013945,2]
[354168217,1740321042464,-500.0,0.00013945,2]
[354168218,1740321042473,-949.6,0.00013945,2]